[Event "Titled Tuesday Blitz May 16 Late 2023"]
[White "MKlose11"]
[Black "Dmitriev, Sergey"]
[BlackFideId "14101785"]
[WhiteElo "2659"]
[BlackElo "2132"]
[Result "1-0"]
[Round "02"]
[TimeControl "180+2"]
[Date "2023.05.16"]
[WhiteClock "0:00:53"]
[BlackClock "0:00:32"]

1. e4 {[%clk 0:03:00]}  d6 {[%clk 0:02:59]} 2. d4 {[%clk 0:02:49]}  g6 {[%clk 0:02:58]} 3. Nc3 {[%clk 0:02:32]}  Bg7 {[%clk 0:02:58]} 4. Be3 {[%clk 0:02:31]}  e6 {[%clk 0:02:58]} 5. Qd2 {[%clk 0:02:31]}  Ne7 {[%clk 0:02:59]} 6. Bh6 {[%clk 0:02:31]}  O-O {[%clk 0:02:59]} 7. h4 {[%clk 0:02:30]}  f5 {[%clk 0:02:51]} 8. h5 {[%clk 0:02:30]}  Qe8 {[%clk 0:02:43]} 9. Nf3 {[%clk 0:02:25]}  fxe4 {[%clk 0:02:17]} 10. Nxe4 {[%clk 0:02:24]}  Nf5 {[%clk 0:02:15]} 11. Bxg7 {[%clk 0:02:23]}  Nxg7 {[%clk 0:02:13]} 12. Qg5 {[%clk 0:02:08]}  Nd7 {[%clk 0:01:57]} 13. hxg6 {[%clk 0:02:02]}  Qxg6 {[%clk 0:01:56]} 14. Bd3 {[%clk 0:01:57]}  Qxg5 {[%clk 0:01:55]} 15. Nfxg5 {[%clk 0:01:53]}  h6 {[%clk 0:01:53]} 16. Rxh6 {[%clk 0:01:51]}  d5 {[%clk 0:01:47]} 17. Ng3 {[%clk 0:01:48]}  Rf6 {[%clk 0:01:43]} 18. Rh2 {[%clk 0:01:40]}  e5 {[%clk 0:01:38]} 19. O-O-O {[%clk 0:01:28]}  e4 {[%clk 0:01:37]} 20. Rdh1 {[%clk 0:01:26]}  Kf8 {[%clk 0:01:31]} 21. Nh7+ {[%clk 0:01:25]}  Ke7 {[%clk 0:01:31]} 22. Nxf6 {[%clk 0:01:25]}  Nxf6 {[%clk 0:01:30]} 23. Be2 {[%clk 0:01:25]}  Bd7 {[%clk 0:01:24]} 24. Nh5 {[%clk 0:01:22]}  Ngxh5 {[%clk 0:01:20]} 25. Bxh5 {[%clk 0:01:22]}  Rg8 {[%clk 0:01:15]} 26. g3 {[%clk 0:01:22]}  b6 {[%clk 0:01:10]} 27. Be2 {[%clk 0:01:20]}  c5 {[%clk 0:01:09]} 28. c3 {[%clk 0:01:21]}  c4 {[%clk 0:01:05]} 29. Kd2 {[%clk 0:01:21]}  a5 {[%clk 0:01:03]} 30. Rh8 {[%clk 0:01:18]}  Rg7 {[%clk 0:01:01]} 31. Rb8 {[%clk 0:01:18]}  b5 {[%clk 0:01:00]} 32. Rb6 {[%clk 0:01:13]}  Rf7 {[%clk 0:00:58]} 33. Rh6 {[%clk 0:01:11]}  Bg4 {[%clk 0:00:52]} 34. Bxg4 {[%clk 0:01:07]}  Nxg4 {[%clk 0:00:51]} 35. Rb7+ {[%clk 0:01:07]}  Kf8 {[%clk 0:00:49]} 36. Rxf7+ {[%clk 0:01:03]}  Kxf7 {[%clk 0:00:50]} 37. Rb6 {[%clk 0:01:00]}  b4 {[%clk 0:00:44]} 38. Ke2 {[%clk 0:01:00]}  bxc3 {[%clk 0:00:44]} 39. bxc3 {[%clk 0:01:01]}  Nh2 {[%clk 0:00:41]} 40. Rb5 {[%clk 0:00:59]}  Ke6 {[%clk 0:00:40]} 41. Rxa5 {[%clk 0:00:59]}  Nf3 {[%clk 0:00:39]} 42. Rb5 {[%clk 0:00:57]}  Ng1+ {[%clk 0:00:38]} 43. Kf1 {[%clk 0:00:54]}  Nf3 {[%clk 0:00:38]} 44. a4 {[%clk 0:00:53]}  Nd2+ {[%clk 0:00:32]} 45. Ke2 {[%clk 0:00:53]} 1-0


[Site "https://www.chess.com"]

[Event "Titled Tuesday Blitz May 16 Late 2023"]
[White "Milikow, Yoav"]
[Black "Sai Han Thiha"]
[WhiteFideId "2822237"]
[BlackFideId "13012290"]
[WhiteElo "2410"]
[BlackElo "1954"]
[Result "1-0"]
[Round "02"]
[TimeControl "180+2"]
[Date "2023.05.16"]
[WhiteClock "0:00:33"]
[BlackClock "0:00:01"]

1. c4 {[%clk 0:03:00]}  Nf6 {[%clk 0:03:00]} 2. Nc3 {[%clk 0:02:58]}  g6 {[%clk 0:03:00]} 3. d4 {[%clk 0:02:57]}  Bg7 {[%clk 0:03:01]} 4. Nf3 {[%clk 0:02:55]}  O-O {[%clk 0:03:01]} 5. Bg5 {[%clk 0:02:52]}  h6 {[%clk 0:02:58]} 6. Bh4 {[%clk 0:02:48]}  c5 {[%clk 0:02:58]} 7. d5 {[%clk 0:02:45]}  e6 {[%clk 0:02:58]} 8. e4 {[%clk 0:02:39]}  exd5 {[%clk 0:02:58]} 9. exd5 {[%clk 0:02:39]}  Qb6 {[%clk 0:02:43]} 10. Rb1 {[%clk 0:02:31]}  Re8+ {[%clk 0:02:41]} 11. Be2 {[%clk 0:02:30]}  d6 {[%clk 0:02:39]} 12. O-O {[%clk 0:02:28]}  Bf5 {[%clk 0:02:36]} 13. Bd3 {[%clk 0:02:29]}  Ne4 {[%clk 0:02:07]} 14. Nxe4 {[%clk 0:02:18]}  Bxe4 {[%clk 0:02:08]} 15. Re1 {[%clk 0:02:18]}  f5 {[%clk 0:02:02]} 16. Nd2 {[%clk 0:02:18]}  Nd7 {[%clk 0:01:37]} 17. Nxe4 {[%clk 0:02:14]}  fxe4 {[%clk 0:01:38]} 18. Bxe4 {[%clk 0:02:13]}  Ne5 {[%clk 0:01:29]} 19. Qc2 {[%clk 0:02:11]}  g5 {[%clk 0:01:27]} 20. Bg3 {[%clk 0:02:08]}  Rf8 {[%clk 0:01:25]} 21. Bf5 {[%clk 0:02:05]}  Qb4 {[%clk 0:01:16]} 22. Be6+ {[%clk 0:02:03]}  Kh8 {[%clk 0:01:16]} 23. Re4 {[%clk 0:02:01]}  b5 {[%clk 0:01:08]} 24. a3 {[%clk 0:01:50]}  Qa5 {[%clk 0:01:03]} 25. b4 {[%clk 0:01:48]}  Qxa3 {[%clk 0:00:52]} 26. cxb5 {[%clk 0:01:44]}  cxb4 {[%clk 0:00:31]} 27. Rexb4 {[%clk 0:01:41]}  Qa5 {[%clk 0:00:24]} 28. h4 {[%clk 0:01:40]}  gxh4 {[%clk 0:00:22]} 29. Rxh4 {[%clk 0:01:40]}  Rf6 {[%clk 0:00:16]} 30. Bxe5 {[%clk 0:01:21]}  dxe5 {[%clk 0:00:17]} 31. Rc4 {[%clk 0:01:21]}  Qb6 {[%clk 0:00:17]} 32. Rc6 {[%clk 0:01:19]}  Qd4 {[%clk 0:00:17]} 33. Rd1 {[%clk 0:01:17]}  Qh4 {[%clk 0:00:15]} 34. g3 {[%clk 0:01:16]}  Qh5 {[%clk 0:00:14]} 35. Rc1 {[%clk 0:01:03]}  Raf8 {[%clk 0:00:14]} 36. Rc8 {[%clk 0:01:02]}  Qf3 {[%clk 0:00:13]} 37. Rxf8+ {[%clk 0:00:56]}  Rxf8 {[%clk 0:00:14]} 38. Re1 {[%clk 0:00:46]}  e4 {[%clk 0:00:10]} 39. Rxe4 {[%clk 0:00:43]}  h5 {[%clk 0:00:07]} 40. Qe2 {[%clk 0:00:41]}  Qxe2 {[%clk 0:00:04]} 41. Rxe2 {[%clk 0:00:41]}  Bd4 {[%clk 0:00:04]} 42. Kg2 {[%clk 0:00:42]}  Kg7 {[%clk 0:00:04]} 43. f4 {[%clk 0:00:42]}  Bb6 {[%clk 0:00:03]} 44. Kf3 {[%clk 0:00:41]}  Kf6 {[%clk 0:00:03]} 45. Rh2 {[%clk 0:00:41]}  Rh8 {[%clk 0:00:03]} 46. Ke4 {[%clk 0:00:41]}  Bc7 {[%clk 0:00:02]} 47. g4 {[%clk 0:00:40]}  h4 {[%clk 0:00:02]} 48. g5+ {[%clk 0:00:40]}  Ke7 {[%clk 0:00:02]} 49. Rh3 {[%clk 0:00:36]}  Rh7 {[%clk 0:00:01]} 50. f5 {[%clk 0:00:36]}  Rh8 {[%clk 0:00:02]} 51. Kf3 {[%clk 0:00:36]}  Bg3 {[%clk 0:00:02]} 52. Kg4 {[%clk 0:00:34]}  Rb8 {[%clk 0:00:02]} 53. f6+ {[%clk 0:00:34]}  Kd6 {[%clk 0:00:02]} 54. g6 {[%clk 0:00:33]}  Rxb5 {[%clk 0:00:02]} 55. g7 {[%clk 0:00:33]}  Rb4+ {[%clk 0:00:02]} 56. Kh5 {[%clk 0:00:33]}  Re4 {[%clk 0:00:01]} 57. g8=Q {[%clk 0:00:33]}  Re5+ {[%clk 0:00:01]} 58. Kg6 {[%clk 0:00:33]} 1-0


[Site "https://www.chess.com"]

[Event "Titled Tuesday Blitz May 16 Late 2023"]
[White "Sieciechowicz, Marcin"]
[Black "Papayan, Oleg"]
[WhiteFideId "1130170"]
[BlackFideId "4193911"]
[WhiteElo "2302"]
[BlackElo "2171"]
[Result "1-0"]
[Round "02"]
[TimeControl "180+2"]
[Date "2023.05.16"]
[WhiteClock "0:00:04"]
[BlackClock "0:00:00"]

1. d4 {[%clk 0:02:59]}  Nf6 {[%clk 0:03:00]} 2. c4 {[%clk 0:02:59]}  e6 {[%clk 0:03:00]} 3. Nc3 {[%clk 0:02:59]}  Bb4 {[%clk 0:02:59]} 4. Qc2 {[%clk 0:03:00]}  O-O {[%clk 0:02:59]} 5. Nf3 {[%clk 0:03:00]}  d5 {[%clk 0:02:54]} 6. cxd5 {[%clk 0:02:59]}  exd5 {[%clk 0:02:52]} 7. Bf4 {[%clk 0:02:59]}  c6 {[%clk 0:02:46]} 8. e3 {[%clk 0:02:58]}  Bg4 {[%clk 0:02:39]} 9. Bd3 {[%clk 0:02:58]}  Nbd7 {[%clk 0:02:33]} 10. Ne5 {[%clk 0:02:58]}  Bh5 {[%clk 0:02:23]} 11. h3 {[%clk 0:02:58]}  Bg6 {[%clk 0:02:12]} 12. g4 {[%clk 0:02:55]}  Nxe5 {[%clk 0:02:01]} 13. Bxe5 {[%clk 0:02:54]}  Ne4 {[%clk 0:02:01]} 14. h4 {[%clk 0:02:43]}  Nxc3 {[%clk 0:01:36]} 15. bxc3 {[%clk 0:02:43]}  Bd6 {[%clk 0:01:28]} 16. Bxg6 {[%clk 0:02:39]}  fxg6 {[%clk 0:01:27]} 17. f4 {[%clk 0:02:10]}  Qd7 {[%clk 0:01:24]} 18. Qg2 {[%clk 0:02:00]}  Rae8 {[%clk 0:01:24]} 19. g5 {[%clk 0:01:52]}  Bxe5 {[%clk 0:01:19]} 20. dxe5 {[%clk 0:01:53]}  Qf5 {[%clk 0:01:11]} 21. O-O-O {[%clk 0:01:50]}  b5 {[%clk 0:01:00]} 22. Rd4 {[%clk 0:01:44]}  a5 {[%clk 0:00:47]} 23. Qh3 {[%clk 0:01:29]}  a4 {[%clk 0:00:35]} 24. Qxf5 {[%clk 0:01:27]}  gxf5 {[%clk 0:00:31]} 25. Kb2 {[%clk 0:01:27]}  Kf7 {[%clk 0:00:30]} 26. Ka3 {[%clk 0:01:24]}  Rc8 {[%clk 0:00:28]} 27. h5 {[%clk 0:01:21]}  Ke6 {[%clk 0:00:27]} 28. Rb1 {[%clk 0:01:04]}  Rc7 {[%clk 0:00:15]} 29. Rdd1 {[%clk 0:00:41]}  Rb8 {[%clk 0:00:11]} 30. c4 {[%clk 0:00:41]}  dxc4 {[%clk 0:00:06]} 31. Rd6+ {[%clk 0:00:41]}  Ke7 {[%clk 0:00:05]} 32. Rbd1 {[%clk 0:00:41]}  b4+ {[%clk 0:00:03]} 33. Kb2 {[%clk 0:00:38]}  c3+ {[%clk 0:00:04]} 34. Kc2 {[%clk 0:00:38]}  c5 {[%clk 0:00:05]} 35. h6 {[%clk 0:00:18]}  g6 {[%clk 0:00:03]} 36. e6 {[%clk 0:00:16]}  Rbb7 {[%clk 0:00:04]} 37. Rd8 {[%clk 0:00:15]}  Kxe6 {[%clk 0:00:03]} 38. R1d6+ {[%clk 0:00:12]}  Ke7 {[%clk 0:00:03]} 39. Rd5 {[%clk 0:00:12]}  c4 {[%clk 0:00:02]} 40. Rh8 {[%clk 0:00:11]}  b3+ {[%clk 0:00:02]} 41. Kxc3 {[%clk 0:00:08]}  b2 {[%clk 0:00:02]} 42. Rxh7+ {[%clk 0:00:06]}  Ke6 {[%clk 0:00:03]} 43. Re5+ {[%clk 0:00:03]}  Kd6 {[%clk 0:00:03]} 44. Rxc7 {[%clk 0:00:03]}  Kxc7 {[%clk 0:00:01]} 45. Re7+ {[%clk 0:00:03]}  Kc6 {[%clk 0:00:00]} 46. Rxb7 {[%clk 0:00:04]} 1-0


[Site "https://www.chess.com"]

[Event "Titled Tuesday Blitz May 16 Late 2023"]
[White "Haydon, David L"]
[Black "Fan_Of_Chucky"]
[WhiteFideId "415405"]
[WhiteElo "2326"]
[BlackElo "2428"]
[Result "0-1"]
[Round "02"]
[TimeControl "180+2"]
[Date "2023.05.16"]
[WhiteClock "0:00:11"]
[BlackClock "0:00:09"]

1. d4 {[%clk 0:03:00]}  Nf6 {[%clk 0:02:50]} 2. Nc3 {[%clk 0:03:00]}  d5 {[%clk 0:02:46]} 3. Bf4 {[%clk 0:02:59]}  c5 {[%clk 0:02:45]} 4. e4 {[%clk 0:02:56]}  cxd4 {[%clk 0:02:42]} 5. Qxd4 {[%clk 0:02:53]}  Nc6 {[%clk 0:02:43]} 6. Bb5 {[%clk 0:02:52]}  Bd7 {[%clk 0:02:35]} 7. Bxc6 {[%clk 0:02:50]}  Bxc6 {[%clk 0:02:35]} 8. e5 {[%clk 0:02:49]}  Ne4 {[%clk 0:02:33]} 9. Nge2 {[%clk 0:02:41]}  e6 {[%clk 0:02:31]} 10. Nxe4 {[%clk 0:02:31]}  dxe4 {[%clk 0:02:32]} 11. Qe3 {[%clk 0:02:25]}  Qa5+ {[%clk 0:02:19]} 12. c3 {[%clk 0:02:23]}  Bc5 {[%clk 0:02:18]} 13. Qg3 {[%clk 0:02:21]}  Bb5 {[%clk 0:01:56]} 14. b4 {[%clk 0:02:16]}  Qa6 {[%clk 0:01:55]} 15. Nc1 {[%clk 0:01:49]}  Be7 {[%clk 0:01:48]} 16. Nb3 {[%clk 0:01:45]}  Bd3 {[%clk 0:01:44]} 17. f3 {[%clk 0:01:39]}  exf3 {[%clk 0:01:36]} 18. Qxf3 {[%clk 0:01:36]}  Rc8 {[%clk 0:01:32]} 19. Bd2 {[%clk 0:01:29]}  Bh4+ {[%clk 0:01:24]} 20. g3 {[%clk 0:01:27]}  Be7 {[%clk 0:01:25]} 21. a4 {[%clk 0:01:13]}  Qc4 {[%clk 0:01:18]} 22. Na5 {[%clk 0:01:07]}  Qe4+ {[%clk 0:01:18]} 23. Qxe4 {[%clk 0:01:06]}  Bxe4 {[%clk 0:01:19]} 24. O-O {[%clk 0:01:02]}  b6 {[%clk 0:01:17]} 25. Nb3 {[%clk 0:01:01]}  Bd5 {[%clk 0:01:13]} 26. Nd4 {[%clk 0:01:00]}  O-O {[%clk 0:01:12]} 27. a5 {[%clk 0:01:00]}  Bd8 {[%clk 0:01:08]} 28. a6 {[%clk 0:00:57]}  Bc7 {[%clk 0:01:06]} 29. Rfe1 {[%clk 0:00:44]}  f6 {[%clk 0:00:50]} 30. exf6 {[%clk 0:00:43]}  Rxf6 {[%clk 0:00:51]} 31. Bg5 {[%clk 0:00:41]}  Rg6 {[%clk 0:00:49]} 32. Be3 {[%clk 0:00:40]}  h5 {[%clk 0:00:46]} 33. Kf2 {[%clk 0:00:32]}  Rf8+ {[%clk 0:00:42]} 34. Ke2 {[%clk 0:00:32]}  e5 {[%clk 0:00:41]} 35. Nc2 {[%clk 0:00:24]}  h4 {[%clk 0:00:39]} 36. Rg1 {[%clk 0:00:23]}  Bc4+ {[%clk 0:00:36]} 37. Kd2 {[%clk 0:00:22]}  Rd6+ {[%clk 0:00:34]} 38. Kc1 {[%clk 0:00:21]}  Rd3 {[%clk 0:00:33]} 39. Kb2 {[%clk 0:00:21]}  Rf3 {[%clk 0:00:29]} 40. Rae1 {[%clk 0:00:20]}  e4 {[%clk 0:00:26]} 41. gxh4 {[%clk 0:00:19]}  Be5 {[%clk 0:00:22]} 42. Bd4 {[%clk 0:00:18]}  Bxd4 {[%clk 0:00:12]} 43. cxd4 {[%clk 0:00:17]}  Rb3+ {[%clk 0:00:13]} 44. Kc1 {[%clk 0:00:16]}  Rf2 {[%clk 0:00:13]} 45. Rd1 {[%clk 0:00:15]}  e3 {[%clk 0:00:10]} 46. d5 {[%clk 0:00:10]}  Rc3 {[%clk 0:00:10]} 47. d6 {[%clk 0:00:10]}  Rcxc2+ {[%clk 0:00:10]} 48. Kb1 {[%clk 0:00:11]}  Rb2+ {[%clk 0:00:10]} 49. Ka1 {[%clk 0:00:12]}  Ra2+ {[%clk 0:00:10]} 50. Kb1 {[%clk 0:00:12]}  Be6 {[%clk 0:00:07]} 51. d7 {[%clk 0:00:11]}  Bf5+ {[%clk 0:00:08]} 52. Kc1 {[%clk 0:00:11]}  Rfc2+ {[%clk 0:00:07]} 53. Kb1 {[%clk 0:00:11]}  Rcb2+ {[%clk 0:00:08]} 54. Kc1 {[%clk 0:00:11]}  Rb1# {[%clk 0:00:09]} 0-1


[Site "https://www.chess.com"]

[Event "Titled Tuesday Blitz May 16 Late 2023"]
[White "De La Colina, Nicolas"]
[Black "Senft, Sean"]
[WhiteFideId "30946921"]
[BlackFideId "2044960"]
[WhiteElo "2046"]
[BlackElo "1989"]
[Result "1-0"]
[Round "02"]
[TimeControl "180+2"]
[Date "2023.05.16"]
[WhiteClock "0:00:05"]
[BlackClock "0:00:49"]

1. e4 {[%clk 0:03:00]}  c5 {[%clk 0:02:59]} 2. Nf3 {[%clk 0:03:00]}  d6 {[%clk 0:03:00]} 3. Bb5+ {[%clk 0:03:00]}  Nd7 {[%clk 0:03:00]} 4. d4 {[%clk 0:03:00]}  a6 {[%clk 0:02:58]} 5. Bxd7+ {[%clk 0:02:58]}  Bxd7 {[%clk 0:02:59]} 6. O-O {[%clk 0:02:58]}  cxd4 {[%clk 0:02:57]} 7. Qxd4 {[%clk 0:02:59]}  Nf6 {[%clk 0:02:45]} 8. Bg5 {[%clk 0:02:58]}  e6 {[%clk 0:02:45]} 9. c4 {[%clk 0:02:58]}  Be7 {[%clk 0:02:45]} 10. Nc3 {[%clk 0:02:58]}  O-O {[%clk 0:02:43]} 11. Bxf6 {[%clk 0:02:52]}  gxf6 {[%clk 0:02:43]} 12. Rac1 {[%clk 0:02:43]}  Rc8 {[%clk 0:02:43]} 13. Rfd1 {[%clk 0:02:38]}  Qa5 {[%clk 0:02:41]} 14. e5 {[%clk 0:02:03]}  fxe5 {[%clk 0:02:34]} 15. Nxe5 {[%clk 0:02:02]}  Qxe5 {[%clk 0:02:31]} 16. Qxe5 {[%clk 0:02:01]}  dxe5 {[%clk 0:02:32]} 17. Rxd7 {[%clk 0:02:02]}  Bg5 {[%clk 0:02:28]} 18. Re1 {[%clk 0:02:00]}  Rxc4 {[%clk 0:02:25]} 19. Rxe5 {[%clk 0:01:46]}  Bf6 {[%clk 0:02:23]} 20. Re3 {[%clk 0:01:46]}  Bxc3 {[%clk 0:02:17]} 21. bxc3 {[%clk 0:01:47]}  Rfc8 {[%clk 0:02:12]} 22. Rg3+ {[%clk 0:01:44]}  Kf8 {[%clk 0:02:12]} 23. Rf3 {[%clk 0:01:41]}  f5 {[%clk 0:02:13]} 24. h3 {[%clk 0:01:02]}  Rxc3 {[%clk 0:02:12]} 25. Rxc3 {[%clk 0:01:03]}  Rxc3 {[%clk 0:02:11]} 26. Rxb7 {[%clk 0:01:03]}  Rc1+ {[%clk 0:02:11]} 27. Kh2 {[%clk 0:01:03]}  Rc2 {[%clk 0:02:12]} 28. Kg3 {[%clk 0:01:00]}  Rxa2 {[%clk 0:02:11]} 29. Rxh7 {[%clk 0:00:57]}  Ra4 {[%clk 0:02:04]} 30. f4 {[%clk 0:00:52]}  Ra2 {[%clk 0:02:02]} 31. Ra7 {[%clk 0:00:48]}  a5 {[%clk 0:02:00]} 32. Kf3 {[%clk 0:00:39]}  a4 {[%clk 0:01:59]} 33. g4 {[%clk 0:00:36]}  Ra3+ {[%clk 0:01:44]} 34. Kg2 {[%clk 0:00:35]}  fxg4 {[%clk 0:01:42]} 35. hxg4 {[%clk 0:00:36]}  Kg8 {[%clk 0:01:40]} 36. Re7 {[%clk 0:00:23]}  Ra2+ {[%clk 0:01:30]} 37. Kf3 {[%clk 0:00:20]}  a3 {[%clk 0:01:30]} 38. Rxe6 {[%clk 0:00:17]}  Kf7 {[%clk 0:01:27]} 39. Ra6 {[%clk 0:00:16]}  Ra1 {[%clk 0:01:28]} 40. Ke4 {[%clk 0:00:14]}  a2 {[%clk 0:00:58]} 41. Kf5 {[%clk 0:00:15]}  Ke7 {[%clk 0:00:55]} 42. g5 {[%clk 0:00:15]}  Ke8 {[%clk 0:00:54]} 43. Ra7 {[%clk 0:00:13]}  Kf8 {[%clk 0:00:52]} 44. Kf6 {[%clk 0:00:09]}  Ke8 {[%clk 0:00:52]} 45. f5 {[%clk 0:00:09]}  Kd8 {[%clk 0:00:50]} 46. g6 {[%clk 0:00:10]}  Kc8 {[%clk 0:00:48]} 47. g7 {[%clk 0:00:09]}  Rg1 {[%clk 0:00:49]} 48. Rxa2 {[%clk 0:00:08]}  Kd8 {[%clk 0:00:49]} 49. Ra8+ {[%clk 0:00:08]}  Kd7 {[%clk 0:00:49]} 50. g8=Q {[%clk 0:00:09]}  Rd1 {[%clk 0:00:48]} 51. Qe6+ {[%clk 0:00:08]}  Kc7 {[%clk 0:00:48]} 52. Rc8+ {[%clk 0:00:09]}  Kb7 {[%clk 0:00:48]} 53. Qc6+ {[%clk 0:00:10]}  Ka7 {[%clk 0:00:49]} 54. Ra8# {[%clk 0:00:05]} 1-0


[Site "https://www.chess.com"]

[Event "Titled Tuesday Blitz May 16 Late 2023"]
[White "Karttunen, Mika"]
[Black "Magallanes, Rey Jomar"]
[WhiteFideId "502081"]
[BlackFideId "5205948"]
[WhiteElo "2396"]
[BlackElo "2252"]
[Result "1-0"]
[Round "02"]
[TimeControl "180+2"]
[Date "2023.05.16"]
[WhiteClock "0:00:37"]
[BlackClock "0:01:12"]

1. e4 {[%clk 0:03:00]}  c5 {[%clk 0:02:58]} 2. Nf3 {[%clk 0:02:59]}  d6 {[%clk 0:02:58]} 3. d4 {[%clk 0:02:58]}  cxd4 {[%clk 0:02:59]} 4. Nxd4 {[%clk 0:02:57]}  Nf6 {[%clk 0:02:59]} 5. Nc3 {[%clk 0:02:57]}  a6 {[%clk 0:02:59]} 6. f3 {[%clk 0:02:55]}  e5 {[%clk 0:02:59]} 7. Nb3 {[%clk 0:02:54]}  Be6 {[%clk 0:02:56]} 8. Be3 {[%clk 0:02:52]}  Nc6 {[%clk 0:02:54]} 9. Nd5 {[%clk 0:02:41]}  Bxd5 {[%clk 0:02:52]} 10. exd5 {[%clk 0:02:41]}  Ne7 {[%clk 0:02:51]} 11. c4 {[%clk 0:02:40]}  Nf5 {[%clk 0:02:51]} 12. Bf2 {[%clk 0:02:40]}  Be7 {[%clk 0:02:51]} 13. g4 {[%clk 0:02:36]}  Nd4 {[%clk 0:02:46]} 14. Nxd4 {[%clk 0:02:33]}  exd4 {[%clk 0:02:47]} 15. Bxd4 {[%clk 0:02:29]}  O-O {[%clk 0:02:43]} 16. Kf2 {[%clk 0:02:27]}  Nd7 {[%clk 0:02:43]} 17. Kg2 {[%clk 0:02:22]}  Bg5 {[%clk 0:02:41]} 18. Bd3 {[%clk 0:02:13]}  g6 {[%clk 0:02:37]} 19. h4 {[%clk 0:02:07]}  Bxh4 {[%clk 0:02:34]} 20. Rxh4 {[%clk 0:01:53]}  Qxh4 {[%clk 0:02:32]} 21. Qd2 {[%clk 0:01:54]}  f5 {[%clk 0:02:07]} 22. Rh1 {[%clk 0:01:48]}  Qe7 {[%clk 0:02:05]} 23. gxf5 {[%clk 0:01:47]}  gxf5 {[%clk 0:02:05]} 24. f4 {[%clk 0:01:17]}  Rf7 {[%clk 0:02:00]} 25. b4 {[%clk 0:01:09]}  Kf8 {[%clk 0:01:58]} 26. Qf2 {[%clk 0:01:05]}  Rc8 {[%clk 0:01:39]} 27. Re1 {[%clk 0:01:04]}  Qd8 {[%clk 0:01:36]} 28. Re6 {[%clk 0:01:04]}  Nf6 {[%clk 0:01:28]} 29. Qh4 {[%clk 0:00:49]}  Ng4 {[%clk 0:01:24]} 30. Qh5 {[%clk 0:00:46]}  Rcc7 {[%clk 0:01:14]} 31. Bxf5 {[%clk 0:00:42]}  Rce7 {[%clk 0:01:13]} 32. Qxg4 {[%clk 0:00:38]}  Rxe6 {[%clk 0:01:13]} 33. Bxe6 {[%clk 0:00:38]}  Re7 {[%clk 0:01:12]} 34. Qg8# {[%clk 0:00:37]} 1-0


[Site "https://www.chess.com"]

[Event "Titled Tuesday Blitz May 16 Late 2023"]
[White "Matlakov, Maxim"]
[Black "Ismayilova, Khanim"]
[WhiteFideId "4168003"]
[BlackFideId "13429019"]
[WhiteElo "2666"]
[BlackElo "1633"]
[Result "1-0"]
[Round "02"]
[TimeControl "180+2"]
[Date "2023.05.16"]
[WhiteClock "0:01:57"]
[BlackClock "0:00:03"]

1. d4 {[%clk 0:03:00]}  d5 {[%clk 0:02:45]} 2. Nf3 {[%clk 0:02:59]}  Nf6 {[%clk 0:02:44]} 3. Bg5 {[%clk 0:02:58]}  e6 {[%clk 0:02:37]} 4. e3 {[%clk 0:02:58]}  Be7 {[%clk 0:02:35]} 5. Nbd2 {[%clk 0:02:58]}  O-O {[%clk 0:02:34]} 6. Bd3 {[%clk 0:02:58]}  Nbd7 {[%clk 0:02:27]} 7. c3 {[%clk 0:02:57]}  b6 {[%clk 0:02:25]} 8. h4 {[%clk 0:02:54]}  a5 {[%clk 0:02:23]} 9. Qe2 {[%clk 0:02:54]}  c5 {[%clk 0:02:06]} 10. h5 {[%clk 0:02:53]}  cxd4 {[%clk 0:02:05]} 11. exd4 {[%clk 0:02:53]}  Nb8 {[%clk 0:01:59]} 12. Ne5 {[%clk 0:02:52]}  Ba6 {[%clk 0:01:51]} 13. Rh3 {[%clk 0:02:48]}  Bxd3 {[%clk 0:01:50]} 14. Qxd3 {[%clk 0:02:49]}  Nfd7 {[%clk 0:01:36]} 15. Bxe7 {[%clk 0:02:17]}  Qxe7 {[%clk 0:01:35]} 16. f4 {[%clk 0:02:18]}  Nxe5 {[%clk 0:01:33]} 17. fxe5 {[%clk 0:02:18]}  f6 {[%clk 0:01:22]} 18. exf6 {[%clk 0:02:16]}  Qxf6 {[%clk 0:01:20]} 19. O-O-O {[%clk 0:02:16]}  Nd7 {[%clk 0:01:18]} 20. h6 {[%clk 0:02:15]}  g6 {[%clk 0:01:17]} 21. Re1 {[%clk 0:02:14]}  Rac8 {[%clk 0:00:42]} 22. Rhe3 {[%clk 0:02:10]}  Rc6 {[%clk 0:00:39]} 23. Nf3 {[%clk 0:02:09]}  b5 {[%clk 0:00:20]} 24. Qxb5 {[%clk 0:02:08]}  Rfc8 {[%clk 0:00:20]} 25. Kb1 {[%clk 0:02:03]}  R8c7 {[%clk 0:00:16]} 26. Ka1 {[%clk 0:01:59]}  Rb6 {[%clk 0:00:16]} 27. Qe2 {[%clk 0:01:59]}  Rcb7 {[%clk 0:00:15]} 28. b3 {[%clk 0:01:57]}  a4 {[%clk 0:00:14]} 29. b4 {[%clk 0:01:57]}  Rc7 {[%clk 0:00:13]} 30. a3 {[%clk 0:01:55]}  Rbc6 {[%clk 0:00:11]} 31. Kb2 {[%clk 0:01:55]}  Nb8 {[%clk 0:00:09]} 32. Rxe6 {[%clk 0:01:54]}  Rxe6 {[%clk 0:00:09]} 33. Qxe6+ {[%clk 0:01:55]}  Qxe6 {[%clk 0:00:07]} 34. Rxe6 {[%clk 0:01:56]}  Kf7 {[%clk 0:00:08]} 35. Rb6 {[%clk 0:01:55]}  Nd7 {[%clk 0:00:07]} 36. Rd6 {[%clk 0:01:56]}  Nf6 {[%clk 0:00:07]} 37. Ng5+ {[%clk 0:01:54]}  Ke7 {[%clk 0:00:06]} 38. Re6+ {[%clk 0:01:55]}  Kd7 {[%clk 0:00:04]} 39. Rxf6 {[%clk 0:01:56]}  Rc6 {[%clk 0:00:03]} 40. Rxc6 {[%clk 0:01:56]}  Kxc6 {[%clk 0:00:04]} 41. Nxh7 {[%clk 0:01:57]}  Kd6 {[%clk 0:00:03]} 42. Ng5 {[%clk 0:01:57]} 1-0


[Site "https://www.chess.com"]